[Event "Titled Tuesday Blitz March 14 Late 2023"]
[White "Vachier-Lagrave, Maxime"]
[Black "Adewumi, Tanitoluwa"]
[WhiteFideId "623539"]
[BlackFideId "30966396"]
[WhiteElo "2740"]
[BlackElo "2806"]
[Result "1/2-1/2"]
[Round "03"]
[TimeControl "180+1"]
[Date "2023.03.14"]
[WhiteClock "0:00:24"]
[BlackClock "0:00:08"]

1. d4 {[%clk 0:03:00]}  Nf6 {[%clk 0:02:57]} 2. c4 {[%clk 0:03:00]}  e6 {[%clk 0:02:57]} 3. Nc3 {[%clk 0:02:59]}  Bb4 {[%clk 0:02:57]} 4. e3 {[%clk 0:02:59]}  c6 {[%clk 0:02:56]} 5. Ne2 {[%clk 0:02:55]}  O-O {[%clk 0:02:50]} 6. a3 {[%clk 0:02:55]}  Ba5 {[%clk 0:02:51]} 7. c5 {[%clk 0:02:51]}  d5 {[%clk 0:02:49]} 8. cxd6 {[%clk 0:02:51]}  Qxd6 {[%clk 0:02:48]} 9. Bd2 {[%clk 0:02:50]}  e5 {[%clk 0:02:30]} 10. Qa4 {[%clk 0:02:45]}  Bb6 {[%clk 0:02:24]} 11. dxe5 {[%clk 0:02:35]}  Qxe5 {[%clk 0:02:23]} 12. Nf4 {[%clk 0:02:28]}  Bf5 {[%clk 0:02:13]} 13. Be2 {[%clk 0:02:15]}  Nbd7 {[%clk 0:02:10]} 14. O-O {[%clk 0:02:13]}  Nc5 {[%clk 0:02:06]} 15. Qc4 {[%clk 0:02:11]}  Rad8 {[%clk 0:02:03]} 16. Rad1 {[%clk 0:02:08]}  Bc2 {[%clk 0:02:01]} 17. Bc1 {[%clk 0:01:35]}  Bxd1 {[%clk 0:02:00]} 18. Bxd1 {[%clk 0:01:35]}  Nce4 {[%clk 0:01:57]} 19. Nxe4 {[%clk 0:01:35]}  Qxe4 {[%clk 0:01:53]} 20. Qe2 {[%clk 0:01:29]}  Rfe8 {[%clk 0:01:51]} 21. Nh3 {[%clk 0:01:22]}  h6 {[%clk 0:01:47]} 22. Bc2 {[%clk 0:01:21]}  Qe5 {[%clk 0:01:47]} 23. b4 {[%clk 0:01:18]}  Bc7 {[%clk 0:01:37]} 24. g3 {[%clk 0:01:19]}  Qe6 {[%clk 0:01:29]} 25. Kg2 {[%clk 0:01:16]}  Ne4 {[%clk 0:01:28]} 26. Nf4 {[%clk 0:01:05]}  Bxf4 {[%clk 0:01:26]} 27. gxf4 {[%clk 0:01:06]}  Nc3 {[%clk 0:01:22]} 28. Qf3 {[%clk 0:01:01]}  Qa2 {[%clk 0:01:21]} 29. Bf5 {[%clk 0:01:00]}  g6 {[%clk 0:01:17]} 30. Bg4 {[%clk 0:00:56]}  Qd5 {[%clk 0:01:05]} 31. f5 {[%clk 0:00:54]}  Re4 {[%clk 0:00:57]} 32. Bh3 {[%clk 0:00:53]}  g5 {[%clk 0:00:45]} 33. Kg1 {[%clk 0:00:53]}  Rh4 {[%clk 0:00:36]} 34. Bg2 {[%clk 0:00:47]}  Qxf3 {[%clk 0:00:35]} 35. Bxf3 {[%clk 0:00:48]}  Rd6 {[%clk 0:00:29]} 36. Bb2 {[%clk 0:00:45]}  Ne4 {[%clk 0:00:27]} 37. Be5 {[%clk 0:00:45]}  Rd5 {[%clk 0:00:26]} 38. Bg3 {[%clk 0:00:45]}  Rxf5 {[%clk 0:00:21]} 39. Bxh4 {[%clk 0:00:45]}  Rxf3 {[%clk 0:00:21]} 40. Bg3 {[%clk 0:00:45]}  Nxg3 {[%clk 0:00:21]} 41. hxg3 {[%clk 0:00:45]}  Rf5 {[%clk 0:00:22]} 42. e4 {[%clk 0:00:40]}  Rf3 {[%clk 0:00:21]} 43. Ra1 {[%clk 0:00:34]}  Kg7 {[%clk 0:00:20]} 44. a4 {[%clk 0:00:32]}  Kf6 {[%clk 0:00:20]} 45. b5 {[%clk 0:00:32]}  c5 {[%clk 0:00:19]} 46. Rd1 {[%clk 0:00:31]}  Ra3 {[%clk 0:00:16]} 47. Rd7 {[%clk 0:00:31]}  Rxa4 {[%clk 0:00:15]} 48. Rxb7 {[%clk 0:00:31]}  Rxe4 {[%clk 0:00:14]} 49. Rxa7 {[%clk 0:00:32]}  Rb4 {[%clk 0:00:14]} 50. Rb7 {[%clk 0:00:28]}  Kg6 {[%clk 0:00:13]} 51. b6 {[%clk 0:00:27]}  c4 {[%clk 0:00:13]} 52. Rc7 {[%clk 0:00:27]}  Rxb6 {[%clk 0:00:13]} 53. Rxc4 {[%clk 0:00:27]}  f5 {[%clk 0:00:12]} 54. Kg2 {[%clk 0:00:28]}  Kh5 {[%clk 0:00:12]} 55. Rc5 {[%clk 0:00:28]}  Rf6 {[%clk 0:00:12]} 56. Kh3 {[%clk 0:00:27]}  Kg6 {[%clk 0:00:12]} 57. f3 {[%clk 0:00:26]}  Ra6 {[%clk 0:00:12]} 58. Rb5 {[%clk 0:00:26]}  h5 {[%clk 0:00:11]} 59. f4 {[%clk 0:00:24]}  gxf4 {[%clk 0:00:09]} 60. gxf4 {[%clk 0:00:24]}  Ra4 {[%clk 0:00:08]} 61. Rb6+ {[%clk 0:00:24]}  Kf7 {[%clk 0:00:08]} 62. Kg3 {[%clk 0:00:24]} 1/2-1/2


[Site "https://www.chess.com"]

[Event "Titled Tuesday Blitz March 14 Late 2023"]
[White "Van Foreest, Jorden"]
[Black "Skvortsov, Andrei"]
[WhiteFideId "1039784"]
[BlackFideId "24108600"]
[WhiteElo "2633"]
[BlackElo "2259"]
[Result "0-1"]
[Round "03"]
[TimeControl "180+1"]
[Date "2023.03.14"]
[WhiteClock "0:00:31"]
[BlackClock "0:00:43"]

1. e4 {[%clk 0:03:00]}  d5 {[%clk 0:02:56]} 2. exd5 {[%clk 0:02:59]}  Qxd5 {[%clk 0:02:57]} 3. Nc3 {[%clk 0:02:59]}  Qe5+ {[%clk 0:02:57]} 4. Be2 {[%clk 0:02:59]}  Bg4 {[%clk 0:02:57]} 5. d4 {[%clk 0:02:59]}  Bxe2 {[%clk 0:02:57]} 6. Ngxe2 {[%clk 0:02:59]}  Qa5 {[%clk 0:02:58]} 7. b4 {[%clk 0:02:55]}  Qh5 {[%clk 0:02:58]} 8. O-O {[%clk 0:02:49]}  e6 {[%clk 0:02:48]} 9. Qd3 {[%clk 0:02:37]}  Bxb4 {[%clk 0:02:45]} 10. Rb1 {[%clk 0:02:36]}  Nc6 {[%clk 0:02:42]} 11. d5 {[%clk 0:02:32]}  O-O-O {[%clk 0:02:23]} 12. Nf4 {[%clk 0:02:25]}  Qe5 {[%clk 0:02:21]} 13. dxc6 {[%clk 0:01:40]}  Rxd3 {[%clk 0:02:19]} 14. cxb7+ {[%clk 0:01:41]}  Kb8 {[%clk 0:02:17]} 15. Nxd3 {[%clk 0:01:41]}  Qxc3 {[%clk 0:01:59]} 16. Nxb4 {[%clk 0:01:39]}  Qc4 {[%clk 0:01:58]} 17. Rd1 {[%clk 0:01:35]}  Ne7 {[%clk 0:01:17]} 18. Rd4 {[%clk 0:01:27]}  Qb5 {[%clk 0:01:16]} 19. c4 {[%clk 0:01:15]}  Qa4 {[%clk 0:01:14]} 20. Bf4 {[%clk 0:01:08]}  Nc6 {[%clk 0:01:00]} 21. Rd7 {[%clk 0:00:57]}  e5 {[%clk 0:00:53]} 22. Bd2 {[%clk 0:00:32]}  Nxb4 {[%clk 0:00:50]} 23. Rxf7 {[%clk 0:00:32]}  Qxa2 {[%clk 0:00:46]} 24. Rd1 {[%clk 0:00:31]}  Qc2 {[%clk 0:00:43]} 0-1


[Site "https://www.chess.com"]

[Event "Titled Tuesday Blitz March 14 Late 2023"]
[White "Wadsworth, Matthew J"]
[Black "Yeletsky, Ivan"]
[WhiteFideId "415804"]
[BlackFideId "24180327"]
[WhiteElo "2330"]
[BlackElo "2414"]
[Result "0-1"]
[Round "03"]
[TimeControl "180+1"]
[Date "2023.03.14"]
[WhiteClock "0:00:10"]
[BlackClock "0:00:50"]

1. g3 {[%clk 0:03:00]}  e5 {[%clk 0:02:58]} 2. Bg2 {[%clk 0:03:00]}  d5 {[%clk 0:02:58]} 3. c4 {[%clk 0:03:00]}  dxc4 {[%clk 0:02:58]} 4. Na3 {[%clk 0:02:57]}  Bxa3 {[%clk 0:02:53]} 5. Qa4+ {[%clk 0:02:56]}  Nc6 {[%clk 0:02:48]} 6. Qxa3 {[%clk 0:02:52]}  Nge7 {[%clk 0:02:42]} 7. Nf3 {[%clk 0:02:41]}  O-O {[%clk 0:02:40]} 8. O-O {[%clk 0:02:41]}  e4 {[%clk 0:02:33]} 9. Ng5 {[%clk 0:02:35]}  Nd4 {[%clk 0:02:33]} 10. Nxe4 {[%clk 0:02:24]}  Nc2 {[%clk 0:02:25]} 11. Qc3 {[%clk 0:02:12]}  Nxa1 {[%clk 0:02:25]} 12. b3 {[%clk 0:02:12]}  cxb3 {[%clk 0:02:24]} 13. Bb2 {[%clk 0:02:11]}  f6 {[%clk 0:02:22]} 14. axb3 {[%clk 0:01:57]}  Nd5 {[%clk 0:02:12]} 15. Qc4 {[%clk 0:01:44]}  Be6 {[%clk 0:02:12]} 16. Rxa1 {[%clk 0:01:38]}  Nf4 {[%clk 0:02:11]} 17. Qb5 {[%clk 0:01:37]}  Nxg2 {[%clk 0:02:11]} 18. Kxg2 {[%clk 0:01:37]}  Qd5 {[%clk 0:02:04]} 19. Qxd5 {[%clk 0:01:34]}  Bxd5 {[%clk 0:02:05]} 20. f3 {[%clk 0:01:34]}  Bxb3 {[%clk 0:02:05]} 21. Nc5 {[%clk 0:01:33]}  Bd5 {[%clk 0:02:05]} 22. e4 {[%clk 0:01:32]}  Bc6 {[%clk 0:02:06]} 23. d4 {[%clk 0:01:31]}  b6 {[%clk 0:02:04]} 24. Ne6 {[%clk 0:01:30]}  Rfc8 {[%clk 0:02:05]} 25. Rc1 {[%clk 0:01:20]}  Bd7 {[%clk 0:02:05]} 26. Nxc7 {[%clk 0:01:18]}  Rab8 {[%clk 0:02:06]} 27. d5 {[%clk 0:01:12]}  a5 {[%clk 0:02:05]} 28. f4 {[%clk 0:01:07]}  Rb7 {[%clk 0:01:59]} 29. d6 {[%clk 0:01:07]}  b5 {[%clk 0:01:53]} 30. e5 {[%clk 0:01:07]}  Kf7 {[%clk 0:01:26]} 31. Rc5 {[%clk 0:00:50]}  Rcb8 {[%clk 0:01:02]} 32. Kf3 {[%clk 0:00:14]}  a4 {[%clk 0:01:01]} 33. Ke4 {[%clk 0:00:13]}  b4 {[%clk 0:00:57]} 34. Kd5 {[%clk 0:00:13]}  a3 {[%clk 0:00:54]} 35. Bd4 {[%clk 0:00:12]}  b3 {[%clk 0:00:49]} 36. e6+ {[%clk 0:00:12]}  Bxe6+ {[%clk 0:00:50]} 37. Nxe6 {[%clk 0:00:12]}  b2 {[%clk 0:00:51]} 38. Rc7+ {[%clk 0:00:10]}  Rxc7 {[%clk 0:00:50]} 39. dxc7 {[%clk 0:00:10]}  Rc8 {[%clk 0:00:50]} 0-1


[Site "https://www.chess.com"]

[Event "Titled Tuesday Blitz March 14 Late 2023"]
[White "Wang, Alexander J"]
[Black "Pino Perez, Lazaro"]
[WhiteFideId "30955270"]
[BlackFideId "3517055"]
[WhiteElo "2208"]
[BlackElo "2170"]
[Result "1-0"]
[Round "03"]
[TimeControl "180+1"]
[Date "2023.03.14"]
[WhiteClock "0:00:04"]
[BlackClock "0:00:09"]

1. e4 {[%clk 0:03:00]}  c5 {[%clk 0:02:59]} 2. Nf3 {[%clk 0:02:56]}  g6 {[%clk 0:02:59]} 3. d4 {[%clk 0:02:55]}  cxd4 {[%clk 0:02:59]} 4. Nxd4 {[%clk 0:02:56]}  Nc6 {[%clk 0:02:59]} 5. Nc3 {[%clk 0:02:56]}  Bg7 {[%clk 0:02:57]} 6. Be3 {[%clk 0:02:56]}  Nf6 {[%clk 0:02:56]} 7. Bc4 {[%clk 0:02:55]}  O-O {[%clk 0:02:56]} 8. Bb3 {[%clk 0:02:54]}  Re8 {[%clk 0:02:55]} 9. f3 {[%clk 0:02:52]}  e6 {[%clk 0:02:47]} 10. Qd2 {[%clk 0:02:49]}  d5 {[%clk 0:02:45]} 11. exd5 {[%clk 0:02:34]}  Nxd5 {[%clk 0:02:42]} 12. Nxd5 {[%clk 0:02:25]}  exd5 {[%clk 0:02:43]} 13. O-O-O {[%clk 0:02:25]}  a5 {[%clk 0:01:59]} 14. a4 {[%clk 0:02:17]}  Qh4 {[%clk 0:00:52]} 15. g3 {[%clk 0:01:57]}  Qf6 {[%clk 0:00:46]} 16. c3 {[%clk 0:01:49]}  Bh3 {[%clk 0:00:33]} 17. Kb1 {[%clk 0:01:39]}  Nxd4 {[%clk 0:00:25]} 18. Bxd4 {[%clk 0:01:34]}  Qxf3 {[%clk 0:00:26]} 19. Bxg7 {[%clk 0:01:34]}  Kxg7 {[%clk 0:00:26]} 20. Qd4+ {[%clk 0:01:27]}  Kg8 {[%clk 0:00:25]} 21. Bxd5 {[%clk 0:01:21]}  Qf5+ {[%clk 0:00:22]} 22. Ka2 {[%clk 0:01:21]}  Rad8 {[%clk 0:00:21]} 23. c4 {[%clk 0:01:12]}  Bg2 {[%clk 0:00:20]} 24. Rhe1 {[%clk 0:00:56]}  Qc2 {[%clk 0:00:18]} 25. Rxe8+ {[%clk 0:00:27]}  Rxe8 {[%clk 0:00:19]} 26. Bxg2 {[%clk 0:00:26]}  Qxg2 {[%clk 0:00:20]} 27. Qd7 {[%clk 0:00:24]}  Re2 {[%clk 0:00:17]} 28. Qb5 {[%clk 0:00:23]}  Qxh2 {[%clk 0:00:16]} 29. Rd8+ {[%clk 0:00:23]}  Kg7 {[%clk 0:00:16]} 30. Qb3 {[%clk 0:00:23]}  Rc2 {[%clk 0:00:15]} 31. Rb8 {[%clk 0:00:18]}  Qe2 {[%clk 0:00:14]} 32. Rxb7 {[%clk 0:00:18]}  Rxc4 {[%clk 0:00:14]} 33. Ra7 {[%clk 0:00:15]}  Qe4 {[%clk 0:00:12]} 34. Ka3 {[%clk 0:00:14]}  h5 {[%clk 0:00:12]} 35. Qb5 {[%clk 0:00:10]}  Rd4 {[%clk 0:00:11]} 36. b3 {[%clk 0:00:07]}  Qb1 {[%clk 0:00:10]} 37. Qe5+ {[%clk 0:00:07]}  Kh6 {[%clk 0:00:10]} 38. Qxd4 {[%clk 0:00:06]}  Qc1+ {[%clk 0:00:10]} 39. Ka2 {[%clk 0:00:06]}  Qc2+ {[%clk 0:00:10]} 40. Qb2 {[%clk 0:00:07]}  Qc5 {[%clk 0:00:10]} 41. Rxf7 {[%clk 0:00:07]}  Qd5 {[%clk 0:00:10]} 42. Qg7+ {[%clk 0:00:06]}  Kg5 {[%clk 0:00:10]} 43. Qf6+ {[%clk 0:00:07]}  Kh6 {[%clk 0:00:10]} 44. Qh8+ {[%clk 0:00:06]}  Kg5 {[%clk 0:00:11]} 45. Rf2 {[%clk 0:00:04]}  Qd4 {[%clk 0:00:09]} 46. Qxd4 {[%clk 0:00:04]} 1-0


[Site "https://www.chess.com"]

[Event "Titled Tuesday Blitz March 14 Late 2023"]
[White "Yanchenko, Roman"]
[Black "Deac, Bogdan-Daniel"]
[WhiteFideId "4137329"]
[BlackFideId "1226380"]
[WhiteElo "2491"]
[BlackElo "2649"]
[Result "0-1"]
[Round "03"]
[TimeControl "180+1"]
[Date "2023.03.14"]
[WhiteClock "0:00:17"]
[BlackClock "0:00:10"]

1. d4 {[%clk 0:03:00]}  Nf6 {[%clk 0:02:57]} 2. Nf3 {[%clk 0:03:00]}  b6 {[%clk 0:02:56]} 3. c4 {[%clk 0:03:00]}  Bb7 {[%clk 0:02:55]} 4. Bf4 {[%clk 0:03:00]}  g6 {[%clk 0:02:52]} 5. Nc3 {[%clk 0:03:00]}  Bg7 {[%clk 0:02:53]} 6. e3 {[%clk 0:03:00]}  Nh5 {[%clk 0:02:49]} 7. Bg5 {[%clk 0:03:00]}  h6 {[%clk 0:02:47]} 8. Bh4 {[%clk 0:03:00]}  d6 {[%clk 0:02:47]} 9. d5 {[%clk 0:02:29]}  c6 {[%clk 0:02:31]} 10. Nd4 {[%clk 0:02:26]}  Nf6 {[%clk 0:02:25]} 11. Be2 {[%clk 0:02:16]}  cxd5 {[%clk 0:02:03]} 12. Bxf6 {[%clk 0:02:15]}  Bxf6 {[%clk 0:02:02]} 13. cxd5 {[%clk 0:02:15]}  a6 {[%clk 0:01:57]} 14. h4 {[%clk 0:02:04]}  h5 {[%clk 0:01:55]} 15. a4 {[%clk 0:01:56]}  Nd7 {[%clk 0:01:52]} 16. Rc1 {[%clk 0:01:54]}  Rc8 {[%clk 0:01:49]} 17. Nc6 {[%clk 0:01:41]}  Bxc6 {[%clk 0:01:44]} 18. dxc6 {[%clk 0:01:41]}  Rxc6 {[%clk 0:01:44]} 19. Bxa6 {[%clk 0:01:41]}  Bxc3+ {[%clk 0:01:40]} 20. bxc3 {[%clk 0:01:40]}  Qc7 {[%clk 0:01:20]} 21. c4 {[%clk 0:01:23]}  O-O {[%clk 0:01:10]} 22. g4 {[%clk 0:01:23]}  Rc5 {[%clk 0:01:03]} 23. Rg1 {[%clk 0:01:22]}  Nf6 {[%clk 0:00:56]} 24. gxh5 {[%clk 0:01:16]}  Rxh5 {[%clk 0:00:54]} 25. Qd3 {[%clk 0:01:10]}  Qc5 {[%clk 0:00:35]} 26. Ke2 {[%clk 0:01:06]}  Rxh4 {[%clk 0:00:35]} 27. Bb7 {[%clk 0:01:00]}  Kg7 {[%clk 0:00:27]} 28. Rg3 {[%clk 0:00:55]}  Rfh8 {[%clk 0:00:22]} 29. Rcg1 {[%clk 0:00:54]}  R8h6 {[%clk 0:00:23]} 30. Rg5 {[%clk 0:00:52]}  Qxc4 {[%clk 0:00:21]} 31. Qxc4 {[%clk 0:00:22]}  Rxc4 {[%clk 0:00:20]} 32. a5 {[%clk 0:00:23]}  bxa5 {[%clk 0:00:19]} 33. Rxa5 {[%clk 0:00:24]}  Rc2+ {[%clk 0:00:18]} 34. Kf3 {[%clk 0:00:24]}  Rh2 {[%clk 0:00:17]} 35. Rg2 {[%clk 0:00:24]}  Rxg2 {[%clk 0:00:16]} 36. Kxg2 {[%clk 0:00:25]}  Ng4 {[%clk 0:00:16]} 37. Kf3 {[%clk 0:00:16]}  Nxf2 {[%clk 0:00:16]} 38. Ra7 {[%clk 0:00:16]}  Kf6 {[%clk 0:00:13]} 39. Ba6 {[%clk 0:00:15]}  Rb2 {[%clk 0:00:10]} 40. Rc7 {[%clk 0:00:14]}  Nh3 {[%clk 0:00:09]} 41. Bc4 {[%clk 0:00:13]}  Ng5+ {[%clk 0:00:08]} 42. Kf4 {[%clk 0:00:13]}  Rc2 {[%clk 0:00:09]} 43. Rc8 {[%clk 0:00:13]}  d5 {[%clk 0:00:07]} 44. Ba6 {[%clk 0:00:13]}  Ne6+ {[%clk 0:00:06]} 45. Kf3 {[%clk 0:00:14]}  Rxc8 {[%clk 0:00:07]} 46. Bxc8 {[%clk 0:00:15]}  Ke5 {[%clk 0:00:07]} 47. Bd7 {[%clk 0:00:14]}  f5 {[%clk 0:00:07]} 48. Be8 {[%clk 0:00:15]}  Kf6 {[%clk 0:00:07]} 49. Bd7 {[%clk 0:00:15]}  Ng5+ {[%clk 0:00:08]} 50. Ke2 {[%clk 0:00:15]}  e6 {[%clk 0:00:08]} 51. Bc8 {[%clk 0:00:15]}  Ne4 {[%clk 0:00:08]} 52. Kf3 {[%clk 0:00:16]}  g5 {[%clk 0:00:08]} 53. Bb7 {[%clk 0:00:16]}  g4+ {[%clk 0:00:09]} 54. Kg2 {[%clk 0:00:16]}  Ke5 {[%clk 0:00:09]} 55. Bc8 {[%clk 0:00:16]}  Nc5 {[%clk 0:00:09]} 56. Kf2 {[%clk 0:00:17]}  Kd6 {[%clk 0:00:10]} 0-1


[Site "https://www.chess.com"]

[Event "Titled Tuesday Blitz March 14 Late 2023"]
[White "Yeritsyan, Hayk"]
[Black "Kohler, Aran"]
[WhiteFideId "13307320"]
[BlackFideId "1002856"]
[WhiteElo "2435"]
[BlackElo "2234"]
[Result "0-1"]
[Round "03"]
[TimeControl "180+1"]
[Date "2023.03.14"]
[WhiteClock "0:01:13"]
[BlackClock "0:01:02"]

1. d4 {[%clk 0:03:00]}  Nf6 {[%clk 0:02:58]} 2. Nf3 {[%clk 0:03:01]}  d5 {[%clk 0:02:53]} 3. e3 {[%clk 0:03:01]}  Bg4 {[%clk 0:02:38]} 4. c4 {[%clk 0:02:58]}  e6 {[%clk 0:02:37]} 5. Qb3 {[%clk 0:02:56]}  Bxf3 {[%clk 0:02:22]} 6. gxf3 {[%clk 0:02:42]}  Nc6 {[%clk 0:02:09]} 7. Qxb7 {[%clk 0:02:29]}  Nb4 {[%clk 0:02:03]} 8. Qb5+ {[%clk 0:02:29]}  Qd7 {[%clk 0:01:30]} 9. Qxd7+ {[%clk 0:02:24]}  Nxd7 {[%clk 0:01:27]} 10. Kd1 {[%clk 0:02:21]}  dxc4 {[%clk 0:01:24]} 11. Bxc4 {[%clk 0:02:19]}  Nb6 {[%clk 0:01:24]} 12. Be2 {[%clk 0:02:17]}  O-O-O {[%clk 0:01:21]} 13. a3 {[%clk 0:02:12]}  N4d5 {[%clk 0:01:11]} 14. Nc3 {[%clk 0:02:10]}  Kb8 {[%clk 0:01:08]} 15. Nxd5 {[%clk 0:02:07]}  Rxd5 {[%clk 0:01:06]} 16. b4 {[%clk 0:02:05]}  e5 {[%clk 0:01:05]} 17. Bb2 {[%clk 0:01:58]}  exd4 {[%clk 0:01:03]} 18. exd4 {[%clk 0:01:27]}  Na4 {[%clk 0:01:03]} 19. Bc4 {[%clk 0:01:13]}  Nxb2+ {[%clk 0:01:02]} 0-1


[Site "https://www.chess.com"]

[Event "Titled Tuesday Blitz March 14 Late 2023"]
[White "Postma, Dinant"]
[Black "Movahed, Sina"]
[WhiteFideId "1018612"]
[BlackFideId "42520835"]
[WhiteElo "2513"]
[BlackElo "2225"]
[Result "0-1"]
[Round "03"]
[TimeControl "180+2"]
[Date "2023.03.14"]
[WhiteClock "0:00:04"]
[BlackClock "0:00:58"]

1. d4 {[%clk 0:03:00]}  Nf6 {[%clk 0:02:59]} 2. Bg5 {[%clk 0:03:00]}  c5 {[%clk 0:02:57]} 3. d5 {[%clk 0:02:58]}  Ne4 {[%clk 0:02:54]} 4. Bf4 {[%clk 0:02:57]}  b5 {[%clk 0:02:53]} 5. f3 {[%clk 0:02:55]}  Qa5+ {[%clk 0:02:48]} 6. c3 {[%clk 0:02:52]}  Nf6 {[%clk 0:02:46]} 7. e4 {[%clk 0:02:52]}  e6 {[%clk 0:02:41]} 8. Nh3 {[%clk 0:01:47]}  exd5 {[%clk 0:02:32]} 9. e5 {[%clk 0:01:47]}  Ng8 {[%clk 0:02:22]} 10. Qxd5 {[%clk 0:01:46]}  Nc6 {[%clk 0:02:22]} 11. Ng5 {[%clk 0:01:43]}  Nh6 {[%clk 0:02:22]} 12. Ne4 {[%clk 0:01:23]}  c4 {[%clk 0:02:01]} 13. Bxh6 {[%clk 0:01:17]}  gxh6 {[%clk 0:01:54]} 14. Nf6+ {[%clk 0:01:15]}  Kd8 {[%clk 0:01:52]} 15. Nd2 {[%clk 0:01:01]}  Qb6 {[%clk 0:01:26]} 16. O-O-O {[%clk 0:00:32]}  Qe3 {[%clk 0:01:22]} 17. Bxc4 {[%clk 0:00:20]}  bxc4 {[%clk 0:01:13]} 18. Rhe1 {[%clk 0:00:19]}  Qc5 {[%clk 0:01:13]} 19. Qxf7 {[%clk 0:00:18]}  Be7 {[%clk 0:01:08]} 20. Nde4 {[%clk 0:00:11]}  Qxe5 {[%clk 0:01:04]} 21. Qxc4 {[%clk 0:00:11]}  Bxf6 {[%clk 0:01:02]} 22. Qxc6 {[%clk 0:00:08]}  Bg5+ {[%clk 0:01:02]} 23. Kb1 {[%clk 0:00:07]}  Rb8 {[%clk 0:01:01]} 24. Qc4 {[%clk 0:00:04]}  Qb5 {[%clk 0:00:58]} 0-1


[Site "https://www.chess.com"]

[Event "Titled Tuesday Blitz March 14 Late 2023"]
[White "ArchibaldCerveza29"]
[Black "Perez Ponsa, Federico"]
[BlackFideId "117927"]
[WhiteElo "2506"]
[BlackElo "2592"]
[Result "0-1"]
[Round "03"]
[TimeControl "180+2"]
[Date "2023.03.14"]
[WhiteClock "0:00:07"]
[BlackClock "0:01:17"]

1. e4 {[%clk 0:02:57]}  c5 {[%clk 0:02:45]} 2. Nf3 {[%clk 0:02:54]}  d6 {[%clk 0:02:45]} 3. d4 {[%clk 0:02:53]}  cxd4 {[%clk 0:02:46]} 4. Nxd4 {[%clk 0:02:54]}  Nf6 {[%clk 0:02:46]} 5. Nc3 {[%clk 0:02:55]}  a6 {[%clk 0:02:47]} 6. Rg1 {[%clk 0:02:55]}  h5 {[%clk 0:02:43]} 7. Bg5 {[%clk 0:02:54]}  Nbd7 {[%clk 0:02:43]} 8. f4 {[%clk 0:02:42]}  b5 {[%clk 0:02:39]} 9. Bd3 {[%clk 0:02:35]}  Qb6 {[%clk 0:02:34]} 10. Nf3 {[%clk 0:02:13]}  Bb7 {[%clk 0:02:32]} 11. Qe2 {[%clk 0:02:12]}  Rc8 {[%clk 0:02:20]} 12. O-O-O {[%clk 0:02:11]}  Rxc3 {[%clk 0:02:01]} 13. bxc3 {[%clk 0:02:09]}  e6 {[%clk 0:02:02]} 14. Nd4 {[%clk 0:01:40]}  d5 {[%clk 0:01:47]} 15. Bxf6 {[%clk 0:01:32]}  Nxf6 {[%clk 0:01:44]} 16. e5 {[%clk 0:01:13]}  Ba3+ {[%clk 0:01:44]} 17. Kb1 {[%clk 0:01:13]}  Nd7 {[%clk 0:01:32]} 18. f5 {[%clk 0:01:07]}  Nc5 {[%clk 0:01:32]} 19. fxe6 {[%clk 0:01:04]}  fxe6 {[%clk 0:01:33]} 20. Rgf1 {[%clk 0:01:00]}  Na4 {[%clk 0:01:31]} 21. Qd2 {[%clk 0:00:55]}  b4 {[%clk 0:01:29]} 22. c4 {[%clk 0:00:48]}  Nc3+ {[%clk 0:01:27]} 23. Ka1 {[%clk 0:00:48]}  Qa5 {[%clk 0:01:24]} 24. Bg6+ {[%clk 0:00:13]}  Kd8 {[%clk 0:01:23]} 25. Qxc3 {[%clk 0:00:09]}  bxc3 {[%clk 0:01:22]} 26. Nb3 {[%clk 0:00:05]}  Bb2+ {[%clk 0:01:20]} 27. Kb1 {[%clk 0:00:06]}  Qa3 {[%clk 0:01:21]} 28. cxd5 {[%clk 0:00:06]}  Ba1 {[%clk 0:01:17]} 29. dxe6+ {[%clk 0:00:07]}  Kc8 {[%clk 0:01:17]} 0-1


[Site "https://www.chess.com"]